[Event "10th Iberoamericano-ch 2024"]
[Site "Linares"]
[Date "2024.09.27"]
[Round "4.5"]
[White "Quesada Perez, Luis Ernesto"]
[Black "Fernandez Sanchez, Fernando Miguel"]
[Result "1-0"]
[ECO "D52"]
[WhiteElo "2578"]
[BlackElo "2399"]
[Annotator "RC"]
[PlyCount "55"]
[EventDate "2024.09.25"]
[EventType "swiss"]
[EventCountry "ESP"]
[SourceTitle "playchess.com"]
[Source "ChessBase"]
[SourceQuality "1"]
[TimeControl "5400+30"]

1. d4 {[%emt 0:00:05]} Nf6 {[%emt 0:12:06]} 2. c4 {[%emt 0:00:07]} e6 {[%emt 0:00:04]} 3. Nf3 {[%emt 0:00:09]} d5 {[%emt 0:00:19]} 4. Nc3 {[%emt 0:00:08]} c6 {[%emt 0:00:17]} 5. Bg5 {[%emt 0:02:40]} Nbd7 {[%emt 0:00:08]} 6. e3 {[%emt 0:00:32]} Qa5 {[%emt 0:00:11]} 7. Nd2 {[%emt 0:00:53]} Bb4 {[%emt 0:00:07]} 8. Qc2 {[%emt 0:00:06]} dxc4 {[%emt 0:00:06]} 9. Bxf6 {[%emt 0:00:07]} Nxf6 {[%emt 0:00:03]} 10. Nxc4 {[%emt 0:00:09]} Qc7 {[%emt 0:00:04]} 11. a3 {[%emt 0:00:09]} Be7 {[%emt 0:00:12]} 12. Be2 {[%emt 0:01:30]} c5 {[%emt 0:02:19]} 13. Nb5 {[%emt 0:03:01]} Qb8 {[%emt 0:00:22]} 14. dxc5 {[%emt 0:00:08]} Bxc5 {[%emt 0:00:15]} 15. b4 {[%emt 0:01:11]} Be7 {[%emt 0:00:08]} 16. Na5 {[%emt 0:01:32]} O-O {[%emt 0:00:24]} 17. Nc7 {[%emt 0:03:11]} b6 {[%emt 0:00:24]} 18. Nxa8 {[%emt 0:00:52]} bxa5 {[%emt 0:00:31]} 19. Nc7 {[%emt 0:01:02]} Bb7 {[%emt 0:35:46]} 20. Na6 {[%emt 0:03:08]} Qe5 {[%emt 0:00:18]} 21. O-O {[%emt 0:00:47]} Rc8 {[%emt 0:24:00]} 22. Qd3 {[%emt 0:25:08]} Qg5 {[%emt 0:09:51]} 23. g3 {[%emt 0:02:19]} Qh6 {[%emt 0:04:22]} 24. Rac1 {[%emt 0:06:32]} Rxc1 {[%emt 0:00:21]} 25. Rxc1 {[%emt 0:00:02]} Qh3 {[%emt 0:00:06]} 26. Bf1 {[%emt 0:01:19]} Qh5 {[%emt 0:00:10]} 27. Rc7 {[%emt 0:12:17]} Ng4 {[%emt 0:01:21]} 28. h3 {[%emt 0:00:19]} 1-0

[Event "10th Iberoamericano-ch 2024"]
[Site "Linares"]
[Date "2024.09.27"]
[Round "4.7"]
[White "Cesar Maestre, Bernardo"]
[Black "Avila Pavas, Santiago"]
[Result "1/2-1/2"]
[ECO "B27"]
[WhiteElo "2369"]
[BlackElo "2485"]
[Annotator "RC"]
[PlyCount "102"]
[EventDate "2024.09.25"]
[EventType "swiss"]
[EventCountry "ESP"]
[SourceTitle "playchess.com"]
[Source "ChessBase"]
[SourceQuality "1"]
[TimeControl "5400+30"]

1. e4 {[%emt 0:00:21]} c5 {[%emt 0:02:59]} 2. Nf3 {[%emt 0:00:19]} g6 {[%emt 0:01:06]} 3. c3 {[%emt 0:00:12]} Nf6 {[%emt 0:01:29]} 4. e5 {[%emt 0:01:06]} Nd5 {[%emt 0:00:04]} 5. d4 {[%emt 0:00:40]} cxd4 {[%emt 0:00:05]} 6. cxd4 {[%emt 0:00:14]} Bg7 {[%emt 0:01:09]} 7. Bc4 {[%emt 0:09:08]} Nb6 {[%emt 0:04:46]} 8. Bb3 {[%emt 0:01:35]} Nc6 {[%emt 0:32:27]} 9. a4 {[%emt 0:27:40]} d5 {[%emt 0:02:15]} 10. exd6 {[%emt 0:09:10]} Qxd6 {[%emt 0:06:34]} 11. a5 {[%emt 0:03:49]} Nd7 {[%emt 0:00:30]} 12. Be3 {[%emt 0:00:30]} O-O {[%emt 0:00:30]} 13. Nc3 {[%emt 0:00:30]} Nf6 {[%emt 0:00:30]} 14. h3 {[%emt 0:00:30]} Qd8 {[%emt 0:00:30]} 15. a6 {[%emt 0:00:30]} bxa6 {[%emt 0:19:08]} 16. O-O {[%emt 0:30:18]} Bb7 {[%emt 0:06:45]} 17. Qe2 {[%emt 0:00:30]} Rb8 {[%emt 0:09:05]} 18. Rfd1 {[%emt 0:04:53]} Na5 {[%emt 0:01:32]} 19. Ba2 {[%emt 0:00:12]} Bxf3 {[%emt 0:00:46]} 20. Qxf3 {[%emt 0:00:04]} Rxb2 {[%emt 0:00:17]} 21. Na4 {[%emt 0:00:36]} Rb5 {[%emt 0:01:23]} 22. Nc5 {[%emt 0:01:10]} Nd7 {[%emt 0:02:55]} 23. Rab1 {[%emt 0:03:54]} Rxb1 {[%emt 0:00:52]} 24. Rxb1 Nb6 25. Nb7 {[%emt 0:02:11]} Nxb7 {[%emt 0:00:18]} 26. Qxb7 {[%emt 0:00:07]} Bxd4 {[%emt 0:03:32]} 27. Bxd4 {[%emt 0:00:05]} Qxd4 {[%emt 0:00:03]} 28. Qxa7 {[%emt 0:00:06]} Qd2 {[%emt 0:01:08]} 29. Bxf7+ {[%emt 0:01:40]} Rxf7 {[%emt 0:00:04]} 30. Qxb6 {[%emt 0:00:06]} Rf6 31. Qc5 {[%emt 0:00:26]} Kf7 {[%emt 0:01:25]} 32. Qc4+ {[%emt 0:00:05]} Kg7 {[%emt 0:00:11]} 33. Qc5 {[%emt 0:00:05]} Qd6 {[%emt 0:00:11]} 34. Qe3 {[%emt 0:01:00]} Re6 {[%emt 0:00:15]} 35. Qc3+ {[%emt 0:00:32]} Qe5 {[%emt 0:00:04]} 36. Qc4 {[%emt 0:00:57]} Rf6 {[%emt 0:01:59]} 37. Qa2 {[%emt 0:01:16]} h5 {[%emt 0:01:07]} 38. h4 {[%emt 0:01:05]} g5 {[%emt 0:00:14]} 39. hxg5 {[%emt 0:00:06]} Qxg5 {[%emt 0:00:00]} 40. Re1 {[%emt 0:01:17]} Rg6 {[%emt 0:00:14]} 41. Qb2+ {[%emt 0:00:05]} Kh7 {[%emt 0:01:06]} 42. Qb7 {[%emt 0:00:10]} Rg7 {[%emt 0:00:04]} 43. Qe4+ {[%emt 0:00:12]} Kh6 {[%emt 0:01:09]} 44. Qc6+ {[%emt 0:01:16]} Rg6 {[%emt 0:00:53]} 45. Qb7 {[%emt 0:00:05]} e5 {[%emt 0:00:40]} 46. Qa8 {[%emt 0:00:36]} Kh7 {[%emt 0:00:39]} 47. Rd1 {[%emt 0:01:10]} Rg7 {[%emt 0:00:05]} 48. Rd8 {[%emt 0:00:28]} Qc1+ {[%emt 0:00:30]} 49. Kh2 {[%emt 0:00:04]} Qf4+ {[%emt 0:00:09]} 50. Kg1 Qc1+ {[%emt 0:00:52]} 51. Kh2 {[%emt 0:00:09]} Qf4+ {[%emt 0:00:03]} 1/2-1/2

[Event "10th Iberoamericano-ch 2024"]
[Site "Linares"]
[Date "2024.09.27"]
[Round "4.8"]
[White "Santos Flores, Alberto"]
[Black "Gines Esteo, Pedro Antonio"]
[Result "1/2-1/2"]
[ECO "D46"]
[WhiteElo "2168"]
[BlackElo "2477"]
[Annotator "RC"]
[PlyCount "67"]
[EventDate "2024.09.25"]
[EventType "swiss"]
[EventCountry "ESP"]
[SourceTitle "playchess.com"]
[Source "ChessBase"]
[SourceQuality "1"]
[TimeControl "5400+30"]

1. d4 {[%emt 0:00:04]} Nf6 {[%emt 0:00:38]} 2. c4 {[%emt 0:00:03]} e6 {[%emt 0:00:14]} 3. Nf3 {[%emt 0:00:04]} d5 {[%emt 0:06:38]} 4. Nc3 {[%emt 0:00:16]} c6 {[%emt 0:22:27]} 5. e3 {[%emt 0:00:18]} Nbd7 {[%emt 0:01:14]} 6. Bd3 {[%emt 0:00:06]} Bd6 {[%emt 0:01:01]} 7. e4 {[%emt 0:00:21]} dxe4 {[%emt 0:08:51]} 8. Nxe4 {[%emt 0:00:06]} Nxe4 {[%emt 0:00:05]} 9. Bxe4 {[%emt 0:00:04]} Qa5+ {[%emt 0:06:52]} 10. Bd2 {[%emt 0:01:04]} Bb4 {[%emt 0:00:07]} 11. a3 {[%emt 0:03:57]} Bxd2+ {[%emt 0:01:30]} 12. Qxd2 {[%emt 0:00:02]} Qxd2+ {[%emt 0:00:13]} 13. Kxd2 {[%emt 0:00:02]} c5 {[%emt 0:05:59]} 14. b4 {[%emt 0:10:40]} Nf6 {[%emt 0:00:51]} 15. Ke3 {[%emt 0:19:52]} cxd4+ {[%emt 0:24:08]} 16. Nxd4 {[%emt 0:00:05]} Nxe4 {[%emt 0:00:06]} 17. Kxe4 {[%emt 0:00:04]} Bd7 {[%emt 0:00:14]} 18. c5 {[%emt 0:03:08]} O-O-O {[%emt 0:07:07]} 19. Rhd1 {[%emt 0:29:27]} Ba4 {[%emt 0:02:14]} 20. Rd2 {[%emt 0:00:15]} Rd5 {[%emt 0:03:40]} 21. Raa2 {[%emt 0:02:45]} Rhd8 {[%emt 0:01:39]} 22. Ke3 {[%emt 0:02:13]} Kc7 {[%emt 0:04:00]} 23. Nf3 {[%emt 0:02:33]} f6 {[%emt 0:01:37]} 24. Rxd5 {[%emt 0:02:14]} Rxd5 {[%emt 0:00:01]} 25. Nd4 {[%emt 0:01:00]} Re5+ {[%emt 0:01:02]} 26. Kd3 {[%emt 0:00:26]} Bd7 {[%emt 0:00:29]} 27. f4 {[%emt 0:00:32]} Rh5 {[%emt 0:00:23]} 28. g3 {[%emt 0:01:04]} e5 {[%emt 0:00:38]} 29. fxe5 {[%emt 0:00:09]} Rxe5 {[%emt 0:00:29]} 30. Re2 {[%emt 0:01:20]} Rxe2 {[%emt 0:00:30]} 31. Kxe2 {[%emt 0:00:02]} Kd8 {[%emt 0:00:31]} 32. Kd3 {[%emt 0:00:35]} a6 {[%emt 0:00:30]} 33. Ke4 {[%emt 0:00:57]} Bc6+ {[%emt 0:00:29]} 34. Kf4 {[%emt 0:11:01]} 1/2-1/2

[Event "10th Iberoamericano-ch 2024"]
[Site "Linares"]
[Date "2024.09.27"]
[Round "4.9"]
[White "Fernandez Guillen, Ernesto J."]
[Black "Ladron De Guevara Pinto, Paolo"]
[Result "1/2-1/2"]
[ECO "C54"]
[WhiteElo "2463"]
[BlackElo "2371"]
[Annotator "RC"]
[PlyCount "89"]
[EventDate "2024.09.25"]
[EventType "swiss"]
[EventCountry "ESP"]
[SourceTitle "playchess.com"]
[Source "ChessBase"]
[SourceQuality "1"]
[TimeControl "5400+30"]

1. e4 {[%emt 0:10:34]} e5 {[%emt 0:01:10]} 2. Nf3 {[%emt 0:00:28]} Nc6 {[%emt 0:00:08]} 3. Bc4 {[%emt 0:00:04]} Nf6 {[%emt 0:00:49]} 4. d3 {[%emt 0:06:26]} Bc5 {[%emt 0:01:12]} 5. c3 {[%emt 0:01:03]} d6 {[%emt 0:01:17]} 6. a4 {[%emt 0:06:22]} a6 {[%emt 0:00:16]} 7. b4 {[%emt 0:08:36]} Ba7 {[%emt 0:00:47]} 8. Bg5 {[%emt 0:00:07]} h6 {[%emt 0:00:16]} 9. Bh4 {[%emt 0:00:07]} g5 {[%emt 0:07:56]} 10. Bg3 {[%emt 0:00:57]} Qe7 {[%emt 0:24:36]} 11. Nbd2 {[%emt 0:06:50]} Nh5 {[%emt 0:10:15]} 12. a5 {[%emt 0:27:59]} Qf6 {[%emt 0:02:41]} 13. h3 {[%emt 0:11:39]} Ne7 {[%emt 0:06:55]} 14. Rf1 {[%emt 0:13:12]} Ng6 {[%emt 0:12:43]} 15. Nh2 {[%emt 0:00:09]} Nhf4 {[%emt 0:02:17]} 16. Bxf4 {[%emt 0:01:56]} gxf4 {[%emt 0:04:40]} 17. Nhf3 {[%emt 0:01:10]} Rg8 {[%emt 0:02:39]} 18. Qb3 {[%emt 0:00:31]} Nf8 {[%emt 0:09:32]} 19. g4 {[%emt 0:00:12]} fxg3 {[%emt 0:03:00]} 20. fxg3 {[%emt 0:00:11]} Bxh3 {[%emt 0:00:04]} 21. O-O-O {[%emt 0:01:46]} Bxf1 {[%emt 0:03:40]} 22. Rxf1 {[%emt 0:00:01]} Be3 {[%emt 0:00:18]} 23. Kc2 {[%emt 0:00:49]} Rxg3 {[%emt 0:00:43]} 24. Nd4 {[%emt 0:00:38]} Bf4 {[%emt 0:00:27]} 25. Nf5 {[%emt 0:00:38]} Rg2 {[%emt 0:00:05]} 26. Rxf4 {[%emt 0:00:04]} exf4 {[%emt 0:00:06]} 27. b5 {[%emt 0:00:05]} Nd7 {[%emt 0:02:06]} 28. bxa6 {[%emt 0:00:33]} bxa6 {[%emt 0:01:46]} 29. Qb7 {[%emt 0:00:36]} Rd8 {[%emt 0:00:12]} 30. Qxc7 {[%emt 0:00:51]} f3 {[%emt 0:01:00]} 31. Nxd6+ {[%emt 0:00:32]} Kf8 {[%emt 0:00:07]} 32. Nxf7 {[%emt 0:00:33]} Rxd2+ {[%emt 0:01:43]} 33. Kxd2 {[%emt 0:00:07]} f2 {[%emt 0:00:03]} 34. Nxd8 {[%emt 0:01:07]} f1=Q {[%emt 0:00:25]} 35. Ne6+ {[%emt 0:00:11]} Ke7 {[%emt 0:00:25]} 36. Qd8+ {[%emt 0:00:17]} Kd6 {[%emt 0:00:08]} 37. Qc7+ {[%emt 0:00:10]} Ke7 {[%emt 0:00:13]} 38. Qd8+ {[%emt 0:00:07]} Kd6 {[%emt 0:01:01]} 39. e5+ {[%emt 0:01:41]} Qxe5 {[%emt 0:00:37]} 40. Qc7+ {[%emt 0:00:15]} Ke7 {[%emt 0:00:05]} 41. Qd8+ {[%emt 0:00:03]} Kd6 {[%emt 0:01:50]} 42. Qc7+ {[%emt 0:00:12]} Ke7 {[%emt 0:00:02]} 43. Qd8+ {[%emt 0:00:06]} Kd6 {[%emt 0:01:01]} 44. Qc7+ {[%emt 0:00:07]} Ke7 {[%emt 0:00:04]} 45. Qd8+ 1/2-1/2

[Event "10th Iberoamericano-ch 2024"]
[Site "Linares"]
[Date "2024.09.27"]
[Round "4.10"]
[White "Oro, Faustino"]
[Black "Leyva, Hector"]
[Result "1/2-1/2"]
[ECO "B98"]
[WhiteElo "2434"]
[BlackElo "2296"]
[Annotator "RC"]
[PlyCount "144"]
[EventDate "2024.09.25"]
[EventType "swiss"]
[EventCountry "ESP"]
[SourceTitle "playchess.com"]
[Source "ChessBase"]
[SourceQuality "1"]
[TimeControl "5400+30"]

1. e4 {[%emt 0:00:02]} c5 {[%emt 0:01:37]} 2. Nf3 {[%emt 0:00:08]} d6 {[%emt 0:00:05]} 3. d4 {[%emt 0:00:03]} Nf6 {[%emt 0:00:23]} 4. Nc3 {[%emt 0:00:07]} cxd4 {[%emt 0:00:03]} 5. Nxd4 {[%emt 0:00:07]} a6 {[%emt 0:00:02]} 6. Bg5 {[%emt 0:00:09]} e6 {[%emt 0:00:04]} 7. f4 {[%emt 0:00:05]} h6 {[%emt 0:00:17]} 8. Bh4 {[%emt 0:00:07]} Be7 {[%emt 0:00:08]} 9. Qf3 {[%emt 0:00:56]} Qc7 {[%emt 0:00:14]} 10. O-O-O {[%emt 0:01:00]} Nbd7 {[%emt 0:00:09]} 11. Bd3 {[%emt 0:00:11]} g5 {[%emt 0:00:25]} 12. fxg5 {[%emt 0:00:06]} Ne5 {[%emt 0:00:06]} 13. Qe2 {[%emt 0:00:10]} Nfg4 {[%emt 0:00:29]} 14. Kb1 {[%emt 0:00:08]} hxg5 {[%emt 0:00:33]} 15. Bg3 {[%emt 0:00:23]} Bd7 {[%emt 0:00:32]} 16. h3 {[%emt 0:00:59]} Nf6 {[%emt 0:00:29]} 17. Qd2 {[%emt 0:00:13]} Nh5 {[%emt 0:05:24]} 18. Bh2 {[%emt 0:05:33]} O-O-O {[%emt 0:00:49]} 19. Nce2 {[%emt 0:07:20]} Rdg8 {[%emt 0:02:22]} 20. Nf3 {[%emt 0:08:16]} Nxf3 {[%emt 0:43:41]} 21. gxf3 {[%emt 0:00:07]} e5 {[%emt 0:00:09]} 22. Rdg1 {[%emt 0:14:37]} Nf4 {[%emt 0:01:32]} 23. Bxf4 {[%emt 0:01:19]} exf4 {[%emt 0:07:40]} 24. Nc3 {[%emt 0:12:31]} Be6 {[%emt 0:00:23]} 25. Be2 {[%emt 0:01:02]} Bf6 {[%emt 0:02:38]} 26. Nd5 {[%emt 0:00:46]} Bxd5 {[%emt 0:00:11]} 27. Qxd5 {[%emt 0:00:05]} Be5 {[%emt 0:00:14]} 28. Qb3 {[%emt 0:02:36]} Rg7 {[%emt 0:09:54]} 29. Bc4 {[%emt 0:00:44]} Rh6 {[%emt 0:01:24]} 30. Bd5 {[%emt 0:00:21]} Kb8 {[%emt 0:01:07]} 31. a3 {[%emt 0:04:15]} Ka7 {[%emt 0:01:54]} 32. c3 {[%emt 0:00:48]} Rhh7 {[%emt 0:00:41]} 33. Ka2 {[%emt 0:01:20]} Qb6 {[%emt 0:02:41]} 34. Qd1 {[%emt 0:01:52]} Rh5 {[%emt 0:01:05]} 35. Rg2 {[%emt 0:07:40]} Rgh7 {[%emt 0:00:42]} 36. Rgh2 {[%emt 0:00:21]} Rh4 {[%emt 0:02:15]} 37. Qf1 {[%emt 0:05:47]} Qc5 {[%emt 0:00:39]} 38. Qg2 {[%emt 0:01:11]} Bf6 {[%emt 0:01:37]} 39. Rd1 {[%emt 0:02:47]} Qc8 {[%emt 0:06:31]} 40. Bb3 {[%emt 0:02:52]} Qc7 {[%emt 0:03:19]} 41. Rhh1 {[%emt 0:01:05]} Qb6 {[%emt 0:02:22]} 42. Rd5 {[%emt 0:03:10]} Be5 {[%emt 0:00:35]} 43. Rd3 {[%emt 0:02:07]} f6 {[%emt 0:01:17]} 44. Qf1 {[%emt 0:00:38]} Re7 {[%emt 0:00:23]} 45. Rh2 {[%emt 0:00:56]} Rh8 {[%emt 0:00:30]} 46. Bd5 {[%emt 0:00:42]} Kb8 {[%emt 0:00:55]} 47. Qd1 {[%emt 0:00:45]} Ka7 {[%emt 0:00:19]} 48. Qc2 {[%emt 0:00:36]} Qg1 {[%emt 0:01:15]} 49. Rdd2 {[%emt 0:00:36]} Qe3 {[%emt 0:00:17]} 50. Qd1 {[%emt 0:00:48]} Qb6 {[%emt 0:00:21]} 51. Bb3 {[%emt 0:00:29]} Qe3 {[%emt 0:00:28]} 52. Rh1 {[%emt 0:00:55]} Qb6 {[%emt 0:00:08]} 53. Qf1 {[%emt 0:00:48]} Qc7 {[%emt 0:00:24]} 54. Rd5 {[%emt 0:00:35]} Reh7 {[%emt 0:00:23]} 55. Rd2 {[%emt 0:00:46]} Qc8 {[%emt 0:00:18]} 56. Rdh2 {[%emt 0:00:22]} Kb8 {[%emt 0:00:17]} 57. Bd5 {[%emt 0:00:42]} Ka7 {[%emt 0:02:04]} 58. Kb1 {[%emt 0:03:20]} Kb8 {[%emt 0:00:32]} 59. Qg2 {[%emt 0:00:24]} Rh4 {[%emt 0:00:39]} 60. Qf1 {[%emt 0:00:43]} R4h7 {[%emt 0:00:14]} 61. Bb3 {[%emt 0:00:42]} Ka8 {[%emt 0:00:24]} 62. a4 {[%emt 0:00:51]} Kb8 {[%emt 0:00:39]} 63. Bd5 {[%emt 0:01:02]} Qd7 {[%emt 0:00:27]} 64. Qc4 {[%emt 0:01:37]} Qc7 {[%emt 0:00:40]} 65. Qf1 {[%emt 0:02:22]} Qd7 {[%emt 0:00:19]} 66. Bb3 {[%emt 0:00:18]} Qc8 {[%emt 0:00:28]} 67. Qg2 {[%emt 0:01:23]} Rh4 {[%emt 0:00:32]} 68. Bc2 {[%emt 0:00:23]} Qc4 {[%emt 0:00:22]} 69. Qf2 {[%emt 0:00:42]} Qc8 {[%emt 0:00:38]} 70. Qf1 {[%emt 0:00:43]} Qe6 {[%emt 0:00:16]} 71. Bd1 {[%emt 0:01:21]} R8h7 {[%emt 0:00:38]} 72. Qg2 {[%emt 0:00:41]} Rh8 {[%emt 0:00:17]} 1/2-1/2

[Event "10th Iberoamericano-ch 2024"]
[Site "Linares"]
[Date "2024.09.27"]
[Round "4.12"]
[White "Moral Garcia, Serafin"]
[Black "Fier, Alexandr"]
[Result "0-1"]
[ECO "A10"]
[WhiteElo "2262"]
[BlackElo "2551"]
[Annotator "RC"]
[PlyCount "84"]
[EventDate "2024.09.25"]
[EventType "swiss"]
[EventCountry "ESP"]
[SourceTitle "playchess.com"]
[Source "ChessBase"]
[SourceQuality "1"]
[TimeControl "5400+30"]

1. c4 {[%emt 0:00:01]} b6 {[%emt 0:00:17]} 2. e4 {[%emt 0:00:20]} e6 {[%emt 0:00:09]} 3. Nc3 {[%emt 0:00:45]} Bb7 {[%emt 0:00:10]} 4. Nge2 {[%emt 0:00:37]} Nf6 {[%emt 0:01:13]} 5. d3 {[%emt 0:00:20]} d5 {[%emt 0:00:05]} 6. cxd5 {[%emt 0:01:00]} exd5 {[%emt 0:00:04]} 7. e5 {[%emt 0:00:17]} Nfd7 {[%emt 0:00:03]} 8. d4 {[%emt 0:00:07]} c5 {[%emt 0:00:03]} 9. f4 {[%emt 0:00:54]} Na6 {[%emt 0:14:48]} 10. g3 {[%emt 0:04:45]} Nc7 {[%emt 0:00:59]} 11. Bg2 {[%emt 0:01:30]} f5 {[%emt 0:00:09]} 12. dxc5 {[%emt 0:04:29]} Nxc5 {[%emt 0:01:38]} 13. Nd4 {[%emt 0:02:17]} Ba6 {[%emt 0:01:32]} 14. Bf1 {[%emt 0:10:34]} Bxf1 {[%emt 0:00:09]} 15. Kxf1 {[%emt 0:01:09]} g6 {[%emt 0:00:56]} 16. Be3 {[%emt 0:01:02]} Qd7 {[%emt 0:00:29]} 17. Kg2 {[%emt 0:02:12]} Be7 {[%emt 0:00:39]} 18. Qe2 {[%emt 0:02:40]} O-O {[%emt 0:00:09]} 19. Rac1 {[%emt 0:01:53]} Rac8 {[%emt 0:00:17]} 20. Rhd1 {[%emt 0:00:43]} Rfd8 {[%emt 0:00:20]} 21. b4 {[%emt 0:05:42]} N5e6 {[%emt 0:00:48]} 22. a3 {[%emt 0:02:20]} a5 {[%emt 0:02:08]} 23. Nxe6 {[%emt 0:05:04]} Qxe6 {[%emt 0:01:03]} 24. Nb5 {[%emt 0:01:30]} Nxb5 {[%emt 0:00:48]} 25. Qxb5 {[%emt 0:00:23]} Rxc1 {[%emt 0:00:04]} 26. Bxc1 {[%emt 0:03:22]} axb4 {[%emt 0:00:08]} 27. axb4 {[%emt 0:00:08]} d4 {[%emt 0:00:03]} 28. Rd2 {[%emt 0:03:43]} Qb3 {[%emt 0:02:46]} 29. Qd3 {[%emt 0:09:52]} Qxd3 {[%emt 0:00:30]} 30. Rxd3 {[%emt 0:00:00]} Bxb4 {[%emt 0:00:07]} 31. Kf3 {[%emt 0:01:12]} Kf7 {[%emt 0:00:12]} 32. g4 {[%emt 0:00:59]} Ke6 {[%emt 0:00:34]} 33. h3 {[%emt 0:02:00]} Kd5 {[%emt 0:00:17]} 34. Rd1 {[%emt 0:01:28]} Ra8 {[%emt 0:00:44]} 35. gxf5 {[%emt 0:02:02]} gxf5 {[%emt 0:00:06]} 36. Bb2 {[%emt 0:00:55]} Bc5 {[%emt 0:00:06]} 37. e6 {[%emt 0:00:51]} Re8 {[%emt 0:00:07]} 38. Rg1 {[%emt 0:00:30]} Rxe6 {[%emt 0:00:07]} 39. Rg7 {[%emt 0:00:01]} Re3+ {[%emt 0:00:12]} 40. Kf2 {[%emt 0:00:04]} d3 {[%emt 0:00:18]} 41. Kf1 {[%emt 0:00:20]} d2 {[%emt 0:00:11]} 42. Rd7+ {[%emt 0:00:04]} Bd6 {[%emt 0:00:05]} 0-1

[Event "10th Iberoamericano-ch 2024"]
[Site "Linares"]
[Date "2024.09.27"]
[Round "4.24"]
[White "Ruiz Buendia, Miguel"]
[Black "Henriquez Villagra, Cristobal"]
[Result "0-1"]
[ECO "B31"]
[WhiteElo "2269"]
[BlackElo "2604"]
[Annotator "TA"]
[PlyCount "74"]
[EventDate "2024.09.25"]
[EventType "swiss"]
[EventCountry "ESP"]
[SourceTitle "playchess.com"]
[Source "ChessBase"]
[SourceQuality "1"]
[TimeControl "5400+30"]

{[%evp 18,74,21,18,22,12,18,-11,0,-35,-29,-28,-12,-2,0,-9,0,-8,-5,-20,-10,-24,0,-13,21,14,18,9,8,-29,-15,-66,-62,-104,-108,-88,-107,-73,-65,-49,-93,-181,-182,-757,-796,-1367,-704,-29972,-29977,-29977,-29978,-29978,-29979,-29979,-29980,-29980,-29981,-29981,-29981]} 1. e4 {[%emt 0:00:06]} c5 {[%emt 0:07:55]} 2. Nf3 {[%emt 0:00:05]} Nc6 {[%emt 0:00:04]} 3. Bb5 {[%emt 0:00:10]} g6 {[%emt 0:00:05]} 4. Bxc6 {[%emt 0:00:28]} dxc6 {[%emt 0:00:04]} 5. d3 {[%emt 0:00:15]} Bg7 {[%emt 0:00:07]} 6. O-O {[%emt 0:00:43]} Nf6 {[%emt 0:07:05][%cal Bg8f6,Bf6d7,Bd7f8][%mdl 32]} 7. h3 {[%emt 0:01:55]} Nd7 {[%emt 0:02:06]} 8. Nc3 {[%emt 0:00:43]} e5 {[%emt 0:02:16]} 9. Be3 {[%emt 0:00:20]} Qe7 {[%emt 0:01:10]} 10. Qd2 {[%emt 0:01:27]} Nf8 {[%emt 0:00:52]} 11. Ne2 {[%emt 0:06:33]} Ne6 {[%emt 0:08:31]} 12. c3 {[%emt 0:00:39]} O-O {[%emt 0:08:24] The position is equal.} 13. Ng5 {[%emt 0:06:51]} Rd8 {[%emt 0:05:38]} 14. Rad1 {[%emt 0:06:40]} b6 {[%emt 0:04:04]} 15. Nxe6 {[%emt 0:12:43]} Bxe6 {[%emt 0:03:17]} 16. Qc2 {[%emt 0:02:34]} Rd7 {[%emt 0:06:48][%cal Oa8d8]} (16... Bxa2 $2 17. b3 $18) 17. f4 {[%emt 0:03:28]} exf4 {[%emt 0:00:51]} (17... Bxa2 $6 18. b3 $16) 18. Nxf4 {[%emt 0:02:26]} Rad8 {[%emt 0:01:03]} (18... Bxa2 $2 19. b3 $18) 19. a4 {[%emt 0:04:32]} Rd6 {[%emt 0:05:24]} (19... c4 $5 20. d4 Bf5 $11) 20. a5 {[%emt 0:08:24]} Be5 {[%emt 0:04:07]} 21. axb6 {[%emt 0:04:31]} axb6 {[%emt 0:00:02]} 22. b4 {[%emt 0:05:00]} cxb4 {[%emt 0:02:56]} 23. Bxb6 {[%emt 0:01:09]} b3 {[%emt 0:01:38]} 24. Qd2 {[%emt 0:06:22]} (24. Bxd8 $11 bxc2 25. Bxe7 cxd1=R (25... cxd1=Q 26. Rxd1 Bxf4 27. Bxd6 $15) 26. Rxd1 Bxf4 27. Bxd6 Bxd6 28. Ra1) 24... Ra8 $1 $15 {[%emt 0:06:03] Threatens to win with ...Ra2.} 25. Nxe6 {[%emt 0:10:01]} Rxe6 {[%emt 0:02:48]} 26. d4 {[%emt 0:01:33]} Ra2 $36 {[%emt 0:04:49][%mdl 2048] White is under strong pressure.} 27. Qe3 {[%emt 0:01:47]} Bd6 {[%emt 0:05:19] Black has more active pieces.} 28. e5 {[%emt 0:00:36]} Qb7 $1 {[%emt 0:00:29]} 29. Qf3 {[%emt 0:03:04]} (29. c4 $17 {was worth a try.} Qxb6 30. Qf3 (30. c5 $2 Bxc5 31. dxc5 Qb8 $19)) 29... Bxe5 $19 {[%emt 0:00:54]} (29... Qxb6 $2 30. Qxf7+ (30. exd6 Qb7 $17) 30... Kh8 31. exd6 $18 (31. Qxe6 Ba3 32. Qe8+ Kg7 33. Rf7+ Kh6 34. Qd7 Be7 35. Qxe7 Qxd4+ 36. cxd4 Rxg2+ 37. Kxg2 g5 38. Rxh7+ Kg6 39. Qf7#)) 30. Rb1 $2 {[%emt 0:02:21]} (30. dxe5 Qxb6+ 31. Kh1) 30... Rf6 {[%emt 0:02:12]} ({Weaker is} 30... Qxb6 31. Qxf7+ Kh8 32. Qf8#) 31. Qe3 {[%emt 0:00:50] [#]} c5 $1 {[%emt 0:02:25][%mdl 512]} 32. Qg5 {[%emt 0:00:43]} (32. Rf3 Rxf3) 32... h6 {[%emt 0:01:53] Black mates.} 33. Qg4 {[%emt 0:00:28]} h5 {[%emt 0:00:11]} 34. Qg5 {[%emt 0:00:19]} Bf4 {[%emt 0:00:44]} 35. Rxf4 {[%emt 0:00:54]} Rxf4 {[%emt 0:00:03]} ({Stronger than} 35... Rxb6 36. Rbf1 Kg7 37. dxc5 $11) 36. d5 {[%emt 0:02:42]} Rff2 {[%emt 0:00:12]} 37. Qd8+ {[%emt 0:00:25]} Kh7 {[%emt 0:00:12] Weighted Error Value: White=0.79/Black=0.31.  Mistake:       	White=3     	---        Inaccurate:     	White=5     	Black=1      OK:         	White=7     	Black=4      Best:        	White=1     	Black=3      Strong:       	---       	Black=2} 0-1